bitfinex-derivatives/quotes_BNBF0:USTF0_20250510
["timestamp","ask_amount","ask_price","bid_price","bid_amount"]
[1746893453793,0.2813863,653.87,652.92,1.13918686]
[1746893454594,0.2813863,653.87,652.93,1.13918686]
[1746893454798,0.30587587,653.86,652.93,1.13918686]
[1746893455399,0.30587587,653.86,652.94,1.13918686]
[1746893455797,0.2813863,653.85,652.94,1.13918686]
[1746893455997,0.2813863,653.85,652.95,1.13918686]
[1746893456394,0.2813863,653.85,652.87,0.26630955]
[1746893456395,0.2813863,653.85,652.96,1.13918686]
[1746893456894,0.2813863,653.85,652.97,1.13918686]
[1746893457197,0.2813863,653.85,652.98,1.13918686]
[1746893457499,0.2813863,653.85,652.87,0.26630955]
[1746893458397,0.2813863,653.85,652.88,1.14027369]
[1746893458999,0.2813863,653.85,652.89,1.14027369]
[1746893459499,0.2813863,653.85,652.9,1.14027369]
[1746893460300,0.2813863,653.85,652.87,0.26631668]
[1746893460996,0.2813863,653.85,652.88,1.14103368]
[1746893461302,0.2813863,653.85,652.87,0.26631668]
[1746893462101,0.2813863,653.85,652.88,1.14151211]
[1746893462401,0.2813863,653.85,652.89,1.14151211]
[1746893462602,0.2813863,653.85,652.87,0.26631668]
[1746893463302,0.2813863,653.85,652.88,1.14135683]
[1746893463702,0.2813863,653.85,652.87,0.26631668]
[1746893464903,0.2813863,653.85,652.88,1.14134336]
[1746893465495,0.2813863,653.85,652.87,0.26631668]
[1746893466802,0.2813863,653.85,652.88,1.14140893]
[1746893467503,0.2813863,653.85,652.89,1.14140893]
[1746893468301,0.2813863,653.85,652.9,1.14140893]
[1746893468703,0.30587587,653.86,652.9,1.14140893]
[1746893468904,0.30587587,653.86,652.91,1.14140893]
[1746893469197,0.28139196,653.85,652.92,1.14140893]
[1746893469803,0.28139196,653.85,652.93,1.14140893]
[1746893470604,0.28139196,653.85,652.94,1.14140893]
[1746893471305,0.28139196,653.85,652.39,0.30656509]
[1746893471699,0.28139196,653.85,652.4,1.14089717]
[1746893472003,0.28139196,653.85,652.4,1.40729744]
[1746893472401,0.28139196,653.85,652.41,1.14089717]
[1746893473004,0.28139196,653.85,652.42,1.14089717]
[1746893473699,0.30588523,653.84,652.43,1.14089717]
[1746893474504,0.30588523,653.84,652.44,1.14089717]
[1746893474805,0.28139196,653.83,652.45,1.14089717]
[1746893475299,0.28139196,653.83,652.46,1.14089717]
[1746893475706,0.28139196,653.83,652.47,1.14089717]
[1746893476106,0.28139196,653.83,652.48,1.14089717]
[1746893476704,0.28139196,653.83,652.49,1.14089717]
[1746893477405,0.28139196,653.83,652.5,1.14089717]
[1746893477800,0.28139196,653.83,652.51,1.14089717]
[1746893478105,0.28139196,653.83,652.52,1.14089717]
[1746893478406,0.28139196,653.83,652.53,1.14089717]
[1746893479006,0.28139196,653.83,652.54,1.14089717]
[1746893479306,0.28139196,653.83,652.55,1.14089717]
[1746893479609,0.30589458,653.82,652.55,1.14089717]
[1746893479911,0.28139196,653.81,652.56,1.14089717]
[1746893480109,0.28139196,653.81,652.57,1.14089717]
[1746893480809,0.28139196,653.81,652.58,1.14089717]
[1746893481609,0.28139196,653.81,652.59,1.14089717]
[1746893482109,0.28139196,653.81,652.6,1.14089717]
[1746893483110,0.28139196,653.81,652.61,1.14089717]
[1746893483405,0.28139196,653.81,652.62,1.14089717]
[1746893484214,0.30590394,653.8,652.62,1.14089717]
[1746893484412,0.30590394,653.8,652.63,1.14089717]
[1746893484610,0.28139196,653.79,652.63,1.14089717]
[1746893484809,0.3059133,653.78,652.64,1.14089717]
[1746893485509,0.28139196,653.77,652.64,1.14089717]
[1746893485710,0.28139196,653.77,652.65,1.14089717]
[1746893486011,0.30592266,653.76,652.65,1.14089717]
[1746893486205,0.30592266,653.76,652.66,1.14089717]
[1746893486511,0.28139196,653.75,652.66,1.14089717]
[1746893486706,0.30593202,653.74,652.67,1.14089717]
[1746893487212,0.28142721,653.73,652.68,1.14089717]
[1746893487413,0.30594138,653.72,652.68,1.14089717]
[1746893487914,0.30594138,653.72,652.69,1.14089717]
[1746893488114,0.28142721,653.71,652.69,1.14089717]
[1746893488314,0.28142721,653.71,652.7,1.14089717]
[1746893488512,0.28142721,653.71,652.71,1.14089717]
[1746893489014,0.28142721,653.71,652.72,1.14089717]
[1746893489514,0.28142721,653.71,652.73,1.14089717]
[1746893490015,0.28142721,653.71,652.74,1.14089717]
[1746893490212,0.30594138,653.72,652.74,1.14089717]
[1746893490516,0.28142827,653.71,652.74,1.14089717]
[1746893490716,0.28142827,653.71,652.75,1.14089717]
[1746893491117,0.28142827,653.71,652.76,1.14089717]
[1746893491917,0.28142827,653.71,652.77,1.14089717]
[1746893492917,0.28142827,653.71,652.78,1.14089717]
[1746893493218,0.28142827,653.71,652.79,1.14089717]
[1746893493717,0.28142827,653.71,652.8,1.14089717]
[1746893494218,0.28142827,653.71,652.81,1.14089717]
[1746893495019,0.28142827,653.71,652.82,1.14089717]
[1746893495414,0.28142827,653.71,652.83,1.14089717]
[1746893496019,0.28142827,653.71,652.84,1.14089717]
[1746893496418,0.28142827,653.71,652.85,1.14089717]
[1746893497221,0.28142827,653.71,652.86,1.14089717]
[1746893498021,0.28142827,653.71,652.87,1.14089717]
[1746893498521,0.28142827,653.71,652.88,1.14089717]
[1746893499524,0.28142827,653.71,652.89,1.14089717]
[1746893499923,0.28142827,653.71,652.9,1.14089717]
[1746893500618,0.28142827,653.71,652.91,1.14089717]
[1746893501023,0.28142827,653.71,652.92,1.14089717]
[1746893501724,0.28142827,653.71,652.93,1.14089717]
[1746893502024,0.28142827,653.71,652.94,1.14089717]
[1746893502325,0.28142827,653.71,652.95,1.14089717]
[1746893502621,0.58737433,653.71,652.95,1.14089717]
[1746893502820,0.58737901,653.7,652.71,0.26634012]
[1746893503021,0.30595542,653.69,652.71,0.26634012]
[1746893503525,0.28143437,653.68,652.72,1.14320753]
[1746893503726,0.30596478,653.67,652.73,1.14320753]
[1746893504327,0.28143437,653.66,652.74,1.14320753]
[1746893504926,0.30597414,653.65,652.74,1.14320753]
[1746893505122,0.30597414,653.65,652.75,1.14320753]
[1746893505325,0.28143437,653.64,652.75,1.14320753]
[1746893505626,0.28143437,653.64,652.76,1.14320753]
[1746893506226,0.28143437,653.64,652.77,1.14320753]
[1746893506919,0.28143437,653.64,652.78,1.14320753]
[1746893507425,0.28143437,653.64,652.79,1.14320753]
[1746893507627,0.3059835,653.63,652.79,1.14320753]
[1746893507822,0.28143437,653.62,652.79,1.14320753]
[1746893508027,0.58742255,653.62,652.8,1.14320753]
[1746893508321,0.28143437,653.61,652.8,1.14320753]
[1746893508622,0.28143437,653.61,652.81,1.14320753]
[1746893509525,0.28143437,653.61,652.82,1.14320753]
[1746893510225,0.28143437,653.61,652.83,1.14320753]
[1746893510723,0.28143437,653.61,652.84,1.14320753]
[1746893511728,0.28143437,653.61,652.73,0.26637987]
[1746893512528,0.28143437,653.61,652.74,1.14331811]
[1746893513323,0.28143437,653.61,652.75,1.14331811]
[1746893513828,0.28143437,653.61,652.76,1.14331811]
[1746893514735,0.28143437,653.61,652.77,1.14331811]
[1746893515030,0.28143437,653.61,652.78,1.14331811]
[1746893515325,0.28143437,653.61,652.79,1.14331811]
[1746893516034,0.28143437,653.61,652.8,1.14331811]
[1746893516336,0.30598818,653.62,652.8,1.14331811]
[1746893516533,0.30598818,653.62,652.81,1.14331811]
[1746893516738,0.28147013,653.61,652.81,1.14331811]
[1746893517138,0.28147013,653.61,652.82,1.14331811]
[1746893517438,0.28147013,653.61,652.83,1.14331811]
[1746893517938,0.28147013,653.61,652.84,1.14331811]
[1746893518539,0.28147013,653.61,652.85,1.14331811]
[1746893518934,0.28147013,653.61,652.39,0.30656509]
[1746893519237,0.28147013,653.61,652.75,0.26637682]
[1746893519434,0.28147013,653.61,652.4,1.1432555]
[1746893520241,0.28147013,653.61,652.41,1.1432555]
[1746893520441,0.28147013,653.61,652.42,1.1432555]
[1746893521044,0.28147013,653.61,652.43,1.1432555]
[1746893521442,0.28147013,653.61,652.41,0.26642066]
[1746893521443,0.28147013,653.61,652.44,1.1432555]
[1746893522340,0.28147013,653.61,652.45,1.1432555]
[1746893522941,0.28147013,653.61,652.46,1.1432555]
[1746893523247,0.30599755,653.6,652.46,1.1432555]
[1746893523545,0.28147013,653.59,652.47,1.1432555]
[1746893523946,0.28147013,653.59,652.48,1.1432555]
[1746893524147,0.28147013,653.59,652.49,1.1432555]
[1746893524749,0.28147013,653.59,652.5,1.1432555]
[1746893525047,0.28147013,653.59,652.51,1.1432555]
[1746893525349,0.28147013,653.59,652.52,1.1432555]
[1746893526249,0.28147013,653.59,652.53,1.1432555]
[1746893526549,0.28147013,653.59,652.54,1.1432555]
[1746893526745,0.30600691,653.58,652.54,1.1432555]
[1746893527250,0.28148368,653.57,652.55,1.1432555]
[1746893527549,0.58749527,653.57,652.56,1.1432555]
[1746893528348,0.28148368,653.56,652.57,1.1432555]
[1746893528849,0.28148368,653.56,652.58,1.1432555]
[1746893529350,0.28148368,653.56,652.59,1.1432555]
[1746893529953,0.28148368,653.56,652.6,1.1432555]
[1746893530649,0.28148368,653.56,652.61,1.1432555]
[1746893531051,0.28148368,653.56,652.62,1.1432555]
[1746893531651,0.28148368,653.56,652.63,1.1432555]
[1746893531951,0.28148368,653.56,652.64,1.1432555]
[1746893532955,0.28148368,653.56,652.65,1.1432555]
[1746893533150,0.28148368,653.56,652.66,1.1432555]
[1746893533352,0.30602096,653.55,652.67,1.1432555]
[1746893533553,0.30602096,653.55,652.68,1.1432555]
[1746893533753,0.30602096,653.55,652.39,0.30656509]
[1746893533754,0.28148368,653.54,652.69,1.1432555]
[1746893534654,0.28148368,653.54,652.7,1.1432555]
[1746893534955,0.28148368,653.54,652.6,0.26641454]
[1746893535650,0.28148368,653.54,652.61,1.14533564]
[1746893536053,0.28148368,653.54,652.62,1.14533564]
[1746893536252,0.28148368,653.54,652.63,1.14533564]
[1746893536749,0.28148368,653.54,652.64,1.14533564]
[1746893537253,0.28148368,653.54,652.56,0.26645534]
[1746893537656,0.28148368,653.54,652.57,1.14501425]
[1746893538053,0.26654922,653.53,652.57,1.14501425]
[1746893538254,0.26654922,653.53,652.58,1.14501425]
[1746893538451,0.28148368,653.52,652.58,1.14501425]
[1746893538851,0.28148368,653.52,652.56,0.26645534]
[1746893539258,0.28148368,653.52,652.57,1.14485129]
[1746893539954,0.28148368,653.52,651.68,0.97178496]
[1746893540156,0.2664635,653.51,652.56,0.2664635]
[1746893540352,0.2664635,653.51,651.69,0.27075697]
[1746893540557,0.2664635,653.51,651.68,0.97178496]
[1746893540757,0.2664635,653.51,651.71,0.30688496]
[1746893540959,0.28157084,653.5,651.71,0.30688496]
[1746893541459,0.30604905,653.49,651.72,1.14438898]
[1746893541656,0.30604905,653.49,651.74,0.30687083]
[1746893541959,0.28157084,653.48,651.75,1.41516489]
[1746893542259,0.28157084,653.48,651.77,0.30685671]
[1746893542760,0.30605842,653.47,651.78,0.27077591]
[1746893542960,0.30605842,653.47,651.8,0.30684258]
[1746893543160,0.28157084,653.46,651.81,1.14438898]
[1746893543362,0.30606779,653.45,651.83,0.30682846]
[1746893543861,0.28157084,653.44,651.84,1.14438898]
[1746893544061,0.28157084,653.44,651.86,0.30681434]
[1746893544361,0.28157084,653.44,651.87,1.14438898]
[1746893544662,0.58764331,653.44,651.89,0.30680022]
[1746893544862,0.58764331,653.44,651.9,1.14438898]
[1746893545066,0.28157084,653.43,651.9,1.14438898]
[1746893545561,0.28157084,653.43,651.91,0.30679081]
[1746893545863,0.28157084,653.43,651.92,1.14438898]
[1746893546064,0.28157084,653.43,651.93,0.3067814]
[1746893546362,0.28157084,653.43,651.94,1.14438898]
[1746893546663,0.28157084,653.43,651.95,1.14438898]
[1746893546862,0.28157084,653.43,651.96,0.30676728]
[1746893547064,0.28157084,653.43,651.97,1.14438898]
[1746893547265,0.28157084,653.43,651.98,0.30675787]
[1746893547661,0.28157084,653.43,651.99,1.14438898]
[1746893547960,0.28157084,653.43,652.0,1.45113744]
[1746893548166,0.28157084,653.43,652.01,1.45113274]
[1746893548364,0.28157084,653.43,652.02,0.30673905]
[1746893548663,0.28157084,653.43,652.03,1.14438898]
[1746893548863,0.28157084,653.43,652.04,0.30672964]
[1746893549564,0.28157084,653.43,652.05,1.14438898]
[1746893549761,0.28157084,653.43,652.06,1.45110922]
[1746893549960,0.28157084,653.43,652.07,0.30671553]
[1746893550666,0.28157084,653.43,652.08,1.14438898]
[1746893550967,0.28157084,653.43,652.09,0.30670612]
[1746893551266,0.28157084,653.43,652.1,1.14438898]
[1746893551566,0.28157084,653.43,652.11,1.4510857]
[1746893551764,0.28157084,653.43,652.12,0.30669201]
[1746893552066,0.28157084,653.43,652.13,1.14438898]
[1746893552265,0.28157084,653.43,652.13,1.45107629]
[1746893552566,0.28157084,653.43,652.14,1.14438898]
[1746893552765,0.30607247,653.44,652.14,1.14438898]
[1746893553360,0.30607247,653.44,652.15,1.14438898]
[1746893553361,0.28155661,653.43,652.15,1.14438898]
[1746893553566,0.30607247,653.44,652.15,1.14438898]
[1746893553867,0.28155558,653.43,652.16,1.14438898]
[1746893554366,0.28155558,653.43,652.17,1.14438898]
[1746893554765,0.28155558,653.43,652.18,1.14438898]
[1746893555567,0.28155558,653.43,652.19,1.14438898]
[1746893556367,0.28155558,653.43,652.2,1.14438898]
[1746893556666,0.28155558,653.43,652.2,1.45104338]
[1746893557067,0.28155558,653.43,652.21,1.14438898]
[1746893558169,0.28155558,653.43,652.22,1.14438898]
[1746893558361,0.28155558,653.43,652.23,1.14438898]
[1746893558865,0.28155558,653.43,652.24,1.14438898]
[1746893559373,0.28155558,653.43,652.25,1.14438898]
[1746893560066,0.28155558,653.43,652.26,1.14438898]
[1746893560671,0.28155558,653.43,652.27,1.14438898]
[1746893560972,0.28155558,653.43,652.28,1.14438898]
[1746893561672,0.28155558,653.43,652.29,1.14438898]
[1746893562471,0.28155558,653.43,652.3,1.14438898]
[1746893562771,0.28155558,653.43,652.31,1.14438898]
[1746893563471,0.28155558,653.43,652.32,1.14438898]
[1746893563972,0.28155558,653.43,652.33,1.14438898]
[1746893564173,0.30608184,653.42,652.33,1.14438898]
[1746893564574,0.28155558,653.41,652.33,1.14438898]
[1746893564868,0.28155558,653.41,652.34,1.14438898]
[1746893565073,0.30609121,653.4,652.34,1.14438898]
[1746893565272,0.28155191,653.39,652.34,1.14438898]
[1746893565473,0.28155191,653.39,652.35,1.14438898]
[1746893565667,0.28155191,653.39,652.36,1.14438898]
[1746893566872,0.28155191,653.39,652.37,1.14438898]
[1746893567574,0.28155191,653.39,652.38,1.14438898]
[1746893567974,0.28155191,653.39,652.39,1.14438898]
[1746893568475,0.28155191,653.39,652.4,1.14438898]
[1746893568877,0.28155191,653.39,652.41,1.14438898]
[1746893569376,0.28155191,653.39,652.42,1.14438898]
[1746893570176,0.28155191,653.39,652.43,1.14438898]
[1746893570975,0.28155191,653.39,652.44,1.14438898]
[1746893571677,0.28155191,653.39,652.45,1.14438898]
[1746893572572,0.28155191,653.39,652.46,1.14438898]
[1746893573371,0.28155191,653.39,652.47,1.14438898]
[1746893573876,0.28155191,653.39,652.48,1.14438898]
[1746893574477,0.28155191,653.39,652.49,1.14438898]
[1746893574778,0.28155191,653.39,652.5,1.14438898]
[1746893575178,0.28155191,653.39,652.51,1.14438898]
[1746893575382,0.28155191,653.39,652.52,1.14438898]
[1746893575675,0.28155191,653.39,652.53,1.14438898]
[1746893576076,0.28155191,653.39,652.54,1.14438898]
[1746893576479,0.28155191,653.39,652.55,1.14438898]
[1746893576681,0.28155191,653.39,652.56,1.14438898]
[1746893576875,0.30609121,653.4,652.56,1.14438898]
[1746893577180,0.30609121,653.4,652.57,1.14438898]
[1746893577181,0.28152657,653.39,652.57,1.14438898]
[1746893577880,0.28152657,653.39,652.58,1.14438898]
[1746893578179,0.28152657,653.39,652.59,1.14438898]
[1746893578481,0.28152657,653.39,652.6,1.14438898]
[1746893579175,0.28152657,653.39,652.61,1.14438898]
[1746893579680,0.28152657,653.39,652.62,1.14438898]
[1746893580183,0.28152657,653.39,652.63,1.14438898]
[1746893580883,0.30609121,653.4,652.64,1.14438898]
[1746893581182,0.28152823,653.39,652.64,1.14438898]
[1746893581782,0.28152823,653.39,652.65,1.14438898]
[1746893582082,0.28152823,653.39,652.66,1.14438898]
[1746893582685,0.28152823,653.39,652.67,1.14438898]
[1746893583084,0.28152823,653.39,652.68,1.14438898]
[1746893583585,0.28152823,653.39,652.69,1.14438898]
[1746893583785,0.28152823,653.39,652.56,0.26643902]
[1746893584186,0.28152823,653.39,652.57,1.1494621]
[1746893584717,0.28152823,653.39,652.58,1.1494621]
[1746893585391,0.28152823,653.39,652.59,1.1494621]
[1746893585994,0.28152823,653.39,652.6,1.1494621]
[1746893586491,0.28152823,653.39,652.61,1.1494621]
[1746893586692,0.28152823,653.39,652.62,1.1494621]
[1746893586892,0.28152823,653.39,652.63,1.1494621]
[1746893587391,0.28152823,653.39,652.64,1.1494621]
[1746893588293,0.28152823,653.39,652.65,1.1494621]
[1746893588890,0.28152823,653.39,652.66,1.1494621]
[1746893589491,0.28152823,653.39,652.67,1.1494621]
[1746893590188,0.28152823,653.39,652.59,0.26643902]
[1746893590189,0.28152823,653.39,652.68,1.1494621]
[1746893590993,0.28152823,653.39,652.69,1.1494621]
[1746893591595,0.28152823,653.39,652.7,1.1494621]
[1746893592196,0.28152823,653.39,652.71,1.1494621]
[1746893593094,0.28152823,653.39,652.72,1.1494621]
[1746893593294,0.28152823,653.39,652.73,1.1494621]
[1746893593798,0.28152823,653.39,652.74,1.1494621]
[1746893594497,0.28152823,653.39,652.75,1.1494621]
[1746893595297,0.28152823,653.39,652.76,1.1494621]
[1746893595897,0.28152823,653.39,652.77,1.1494621]
[1746893596399,0.28152823,653.39,652.78,1.1494621]
[1746893597300,0.28152823,653.39,652.79,1.1494621]
[1746893597500,0.28152823,653.39,652.71,0.26641046]
[1746893598002,0.28152823,653.39,652.72,1.14989979]
[1746893598601,0.28152823,653.39,652.73,1.14989979]
[1746893598899,0.28152823,653.39,652.74,1.14989979]
[1746893599102,0.28152823,653.39,652.75,1.14989979]
[1746893599501,0.30609121,653.4,652.75,1.14989979]
[1746893599802,0.30609121,653.4,652.76,1.14989979]
[1746893600003,0.28150855,653.39,652.76,1.14989979]
[1746893600199,0.28150855,653.39,652.71,0.26639823]
[1746893600502,0.28150855,653.39,652.72,1.15080989]
[1746893600898,0.28150855,653.39,652.71,0.26639823]
[1746893601801,0.28150855,653.39,652.72,1.1508149]
[1746893602105,0.28150855,653.39,652.73,1.1508149]
[1746893602497,0.28150855,653.39,652.74,1.1508149]
[1746893603002,0.28150855,653.39,652.75,1.1508149]
[1746893603704,0.28150855,653.39,652.71,0.26642882]
[1746893604003,0.28150855,653.39,652.72,1.15004569]
[1746893604804,0.28150855,653.39,652.73,1.15004569]
[1746893605302,0.28150855,653.39,652.74,1.15004569]
[1746893605904,0.28150855,653.39,652.2,0.3066544]
[1746893606405,0.30609121,653.4,652.21,1.14976789]
[1746893606899,0.30609121,653.4,652.22,1.45641288]
[1746893607101,0.30609121,653.4,652.22,1.72286312]
[1746893607299,0.30609121,653.4,652.23,0.30664029]
[1746893607704,0.30609121,653.4,652.24,1.14976789]
[1746893608402,0.30609121,653.4,652.25,1.14976789]
[1746893608703,0.30609121,653.4,652.26,1.14976789]
[1746893609406,0.30609121,653.4,652.27,1.14976789]
[1746893610006,0.30609121,653.4,652.28,1.14976789]
[1746893610407,0.30609121,653.4,652.29,1.14976789]
[1746893610910,0.30609121,653.4,652.3,1.14976789]
[1746893611308,0.30609121,653.4,652.31,1.14976789]
[1746893611711,0.30609121,653.4,652.32,1.14976789]
[1746893612510,0.30609121,653.4,652.33,1.14976789]
[1746893612711,0.30609121,653.4,652.34,0.30658858]
[1746893613014,0.30609121,653.4,652.35,1.14976789]
[1746893613211,0.30609121,653.4,652.36,0.30657918]
[1746893613411,0.30609121,653.4,652.37,1.14976789]
[1746893613612,0.30609121,653.4,652.37,1.45634237]
[1746893613813,0.28147787,653.39,652.38,1.14976789]
[1746893614310,0.28147787,653.39,652.39,1.14976789]
[1746893615312,0.28147787,653.39,652.4,1.14976789]
[1746893616213,0.28147787,653.39,652.41,1.14976789]
[1746893616410,0.28147787,653.39,652.42,1.14976789]
[1746893616815,0.28147787,653.39,652.43,1.14976789]
[1746893617513,0.28147787,653.39,652.44,1.14976789]
[1746893618111,0.30609121,653.4,652.45,1.14976789]
[1746893618817,0.30609121,653.4,652.46,1.14976789]
[1746893619118,0.28148203,653.39,652.46,1.14976789]
[1746893619813,0.28148203,653.39,652.47,1.14976789]
[1746893620218,0.30609121,653.4,652.47,1.14976789]
[1746893620413,0.30609121,653.4,652.48,1.14976789]
[1746893620613,0.30609121,653.4,652.49,1.14976789]
[1746893620818,0.28148134,653.39,652.49,1.14976789]
[1746893621519,0.28148134,653.39,652.5,1.14976789]
[1746893622316,0.28148134,653.39,652.51,1.14976789]
[1746893622714,0.28148134,653.39,652.52,1.14976789]
[1746893623213,0.28148134,653.39,652.53,1.14976789]
[1746893623821,0.28148134,653.39,652.54,1.14976789]
[1746893624220,0.28148134,653.39,652.55,1.14976789]
[1746893624621,0.28148134,653.39,652.56,1.14976789]
[1746893625122,0.28148134,653.39,652.57,1.14976789]
[1746893625720,0.28148134,653.39,652.58,1.14976789]
[1746893626817,0.28148134,653.39,652.59,1.14976789]
[1746893627218,0.28148134,653.39,652.6,1.14976789]
[1746893627923,0.28148134,653.39,652.61,1.14976789]
[1746893628523,0.28148134,653.39,652.62,1.14976789]
[1746893629121,0.28148134,653.39,652.63,1.14976789]
[1746893629723,0.28148134,653.39,652.52,0.26646146]
[1746893629917,0.28148134,653.39,652.37,0.30657448]
[1746893630119,0.28148134,653.39,652.52,0.26648493]
[1746893630324,0.28148134,653.39,652.38,1.14964112]
[1746893630623,0.28148134,653.39,652.39,1.14964112]
[1746893631023,0.28148134,653.39,652.4,1.14964112]
[1746893631216,0.28148134,653.39,652.41,1.14964112]
[1746893632023,0.28148134,653.39,652.42,1.14964112]
[1746893632224,0.30609121,653.4,652.42,1.14964112]
[1746893632624,0.30609121,653.4,652.43,1.14964112]
[1746893633325,0.30609121,653.4,652.44,1.14964112]
[1746893634326,0.28155716,653.39,652.45,1.14964112]
[1746893634625,0.28155716,653.39,652.46,1.14964112]
[1746893635221,0.28155716,653.39,652.47,1.14964112]
[1746893635625,0.28155716,653.39,652.48,1.14964112]
[1746893636027,0.28155716,653.39,652.49,1.14964112]
[1746893636529,0.28155716,653.39,652.5,1.14964112]
[1746893637030,0.28155716,653.39,652.51,1.14964112]
[1746893637531,0.28155716,653.39,652.52,1.14964112]
[1746893637831,0.28155716,653.39,652.53,1.14964112]
[1746893638231,0.28155716,653.39,652.54,1.14964112]
[1746893638529,0.28155716,653.39,652.55,1.14964112]
[1746893638730,0.28155716,653.39,652.56,1.14964112]
[1746893639030,0.28155716,653.39,652.57,1.14964112]
[1746893639231,0.28155716,653.39,652.58,1.14964112]
[1746893639531,0.28155716,653.39,652.59,1.14964112]
[1746893639729,0.28155716,653.39,652.6,1.14964112]
[1746893639931,0.28155716,653.39,652.47,0.26645432]
[1746893639932,0.28155716,653.39,652.61,1.14964112]
[1746893640232,0.28155716,653.39,652.62,1.14964112]
[1746893640728,0.28155716,653.39,652.63,1.14964112]
[1746893641429,0.28155716,653.39,652.47,0.26645432]
[1746893641834,0.28155716,653.39,652.37,0.30657448]
[1746893642135,0.28155716,653.39,652.47,0.26648493]
[1746893642334,0.28155716,653.39,652.48,1.14860908]
[1746893643033,0.28155716,653.39,652.49,1.14860908]
[1746893643234,0.28155716,653.39,652.5,1.14860908]
[1746893643938,0.28155716,653.39,652.51,1.14860908]
[1746893644538,0.28155716,653.39,652.52,1.14860908]
[1746893645134,0.28155716,653.39,652.53,1.14860908]
[1746893645439,0.28155716,653.39,652.54,1.14860908]
[1746893646238,0.28155716,653.39,652.55,1.14860908]
[1746893646634,0.28155716,653.39,652.56,1.14860908]
[1746893647139,0.28155716,653.39,652.57,1.14860908]
[1746893647734,0.28155716,653.39,652.58,1.14860908]
[1746893648339,0.28155716,653.39,652.59,1.14860908]
[1746893648839,0.28155716,653.39,652.6,1.14860908]
[1746893649444,0.28155716,653.39,652.61,1.14860908]
[1746893650033,0.28155716,653.39,652.62,1.14860908]
[1746893650232,0.28155716,653.39,652.63,1.14860908]
[1746893650639,0.28155716,653.39,652.64,1.14860908]
[1746893651135,0.28155716,653.39,652.65,1.14860908]
[1746893651738,0.28155716,653.39,652.66,1.14860908]
[1746893652440,0.28155716,653.39,652.67,1.14860908]
[1746893653039,0.28155716,653.39,652.68,1.14860908]
[1746893653440,0.28155716,653.39,652.58,0.26643902]
[1746893653941,0.28155716,653.39,652.37,0.30657448]
[1746893654134,0.28155716,653.39,652.58,0.26646656]
[1746893654335,0.28155716,653.39,652.38,1.1478669]
[1746893654535,0.28155716,653.39,652.59,1.1478669]
[1746893655340,0.28155716,653.39,652.6,1.1478669]
[1746893655737,0.28155716,653.39,652.61,1.1478669]
[1746893656136,0.28155716,653.39,652.62,1.1478669]
[1746893656741,0.28155716,653.39,652.63,1.1478669]
[1746893657146,0.28155716,653.39,652.37,0.30657448]
[1746893657147,0.28155716,653.39,652.64,1.1478669]
[1746893657441,0.28155716,653.39,652.65,1.1478669]
[1746893657943,0.28155716,653.39,652.66,1.1478669]
[1746893658340,0.28155716,653.39,652.67,1.1478669]
[1746893658945,0.28155716,653.39,652.68,1.1478669]
[1746893659645,0.28155716,653.39,652.6,0.26644106]
[1746893659846,0.28155716,653.39,652.37,0.30657448]
[1746893660042,0.28155716,653.39,652.38,1.14827777]
[1746893660239,0.28155716,653.39,652.6,0.26646656]
[1746893660443,0.28155716,653.39,652.61,1.14827777]
[1746893661341,0.28155716,653.39,652.62,1.14827777]
[1746893661846,0.28155716,653.39,652.63,1.14827777]
[1746893662646,0.28155716,653.39,652.64,1.14827777]
[1746893662847,0.28155716,653.39,652.65,1.14827777]
[1746893663553,0.28155716,653.39,652.66,1.14827777]
[1746893663948,0.28155716,653.39,652.67,1.14827777]
[1746893664352,0.28155716,653.39,652.68,1.14827777]
[1746893664654,0.28155716,653.39,652.69,1.14827777]
[1746893664850,0.28155716,653.39,652.7,1.14827777]
[1746893665156,0.30609121,653.4,652.7,1.14827777]
[1746893665453,0.30609121,653.4,652.71,1.14827777]
[1746893665754,0.30609121,653.4,652.72,1.14827777]
[1746893666153,0.28147548,653.39,652.73,1.14827777]
[1746893666853,0.28147548,653.39,652.74,1.14827777]
[1746893667253,0.28147548,653.39,652.75,1.14827777]
[1746893668153,0.28147548,653.39,652.76,1.14827777]
[1746893669155,0.28147548,653.39,652.77,1.14827777]
[1746893669753,0.28147548,653.39,652.78,1.14827777]
[1746893670548,0.28147548,653.39,652.79,1.14827777]
[1746893670855,0.28147548,653.39,652.8,1.14827777]
[1746893671351,0.28147548,653.39,652.37,0.30657448]
[1746893671554,0.28147548,653.39,652.38,1.14707744]
[1746893671852,0.28147548,653.39,652.39,1.14707744]
[1746893672057,0.28147548,653.39,652.39,1.41352462]
[1746893672558,0.28147548,653.39,652.4,1.14707744]
[1746893672757,0.28147548,653.39,652.41,1.14707744]
[1746893673257,0.28147548,653.39,652.42,1.14707744]
[1746893673959,0.28147548,653.39,652.43,1.14707744]
[1746893674759,0.28147548,653.39,652.44,1.14707744]
[1746893675161,0.28147548,653.39,652.45,1.14707744]
[1746893675355,0.30609121,653.4,652.46,1.14707744]
[1746893675662,0.30609121,653.4,652.47,1.14707744]
[1746893675857,0.28147341,653.39,652.47,1.14707744]
[1746893676166,0.28147341,653.39,652.48,1.14707744]
[1746893676464,0.28147341,653.39,652.49,1.14707744]
[1746893677165,0.28147341,653.39,652.5,1.14707744]